bitfinex/quotes_SOLUSD_20251116
["timestamp","ask_amount","ask_price","bid_price","bid_amount"]
[1763321484278,22.6512,137.58,137.55,3.08472669]
[1763321484510,22.6512,137.6,137.56,3.73472669]
[1763321485012,25.73592669,137.6,137.56,0.65]
[1763321486413,3.08472669,137.58,137.54,0.65]
[1763321486819,3.08472669,137.57,137.54,0.65]
[1763321486984,3.08472669,137.57,137.52,3.73472669]
[1763321487180,3.08472669,137.57,137.53,0.65]
[1763321487381,3.08472669,137.56,137.52,0.65]
[1763321487594,3.40472669,137.57,137.53,0.65]
[1763321488013,22.6512,137.58,137.51,0.65]
[1763321488014,3.40472669,137.56,137.51,0.65]
[1763321488188,3.08472669,137.54,137.5,0.2]
[1763321488381,3.08472669,137.54,137.5,0.85]
[1763321489200,3.08472669,137.55,137.51,0.65]
[1763321489404,3.40472669,137.57,137.52,3.08472669]
[1763321489786,3.40472669,137.56,137.52,0.65]
[1763321490807,3.40472669,137.55,137.5,3.93472669]
[1763321491111,0.32,137.55,137.51,3.08472669]
[1763321491418,0.32,137.55,137.51,3.73472669]
[1763321491823,22.6512,137.58,137.54,3.08472669]
[1763321492016,3.08472669,137.61,137.56,3.08472669]
[1763321492194,3.08472669,137.61,137.52,33.09002769]
[1763321492195,3.40472669,137.62,137.57,3.08472669]
[1763321492392,22.6512,137.6,137.57,3.08472669]
[1763321492610,25.73592669,137.6,137.56,3.08472669]
[1763321492794,25.73592669,137.6,137.55,3.73472669]
[1763321492995,26.05592669,137.6,137.55,3.73472669]
[1763321493197,22.6512,137.6,137.56,3.73472669]
[1763321493717,22.6512,137.6,137.57,0.65]
[1763321493927,22.6512,137.62,137.59,3.08472669]
[1763321494309,0.32,137.64,137.6,3.73472669]
[1763321494509,22.9712,137.64,137.6,3.73472669]
[1763321495223,3.40472669,137.63,137.58,3.73472669]
[1763321495597,3.40472669,137.63,137.59,0.65]
[1763321495819,3.40472669,137.63,137.58,0.65]
[1763321496012,22.6512,137.62,137.58,3.73472669]
[1763321497706,22.6512,137.62,137.58,3.08472669]
[1763321497907,22.6512,137.62,137.59,0.65]
[1763321499111,22.6512,137.64,137.6,3.08472669]
[1763321499441,53.08472669,137.67,137.62,3.08472669]
[1763321499808,53.40472669,137.67,137.63,0.65]
[1763321500126,76.05592669,137.67,137.63,0.65]
[1763321500714,3.40472669,137.66,137.61,3.73472669]
[1763321500911,3.40472669,137.66,137.61,3.08472669]
[1763321501104,75.73592669,137.67,137.62,3.73472669]
[1763321501429,76.05592669,137.67,137.62,3.73472669]
[1763321502145,76.05592669,137.67,137.63,0.65]
[1763321502146,75.73592669,137.67,137.63,0.65]
[1763321502509,76.05592669,137.67,137.62,3.73472669]
[1763321502806,76.05592669,137.67,137.62,3.08472669]
[1763321503022,76.05592669,137.67,137.63,0.65]
[1763321503740,72.6512,137.67,137.63,3.73472669]
[1763321504327,22.6512,137.67,137.64,3.73472669]
[1763321505426,3.40472669,137.69,137.64,3.73472669]
[1763321505628,26.05592669,137.69,137.64,3.08472669]
[1763321505812,26.05592669,137.69,137.65,0.65]
[1763321506018,26.05592669,137.69,137.64,3.08472669]
[1763321506218,26.05592669,137.69,137.64,3.73472669]
[1763321507335,3.08472669,137.68,137.64,0.65]
[1763321507742,3.08472669,137.66,137.6,0.65]
[1763321507914,3.08472669,137.66,137.61,3.73472669]
[1763321508118,3.08472669,137.65,137.61,0.65]
[1763321508439,3.08472669,137.65,137.6,3.08472669]
[1763321508440,3.08472669,137.65,137.62,0.65]
[1763321510114,3.08472669,137.65,137.6,3.08472669]
[1763321510314,3.08472669,137.65,137.61,0.65]
[1763321511238,22.9712,137.67,137.61,3.73472669]
[1763321511413,3.08472669,137.66,137.61,3.73472669]
[1763321511616,3.08472669,137.66,137.62,0.65]
[1763321512431,3.40472669,137.66,137.62,0.65]
[1763321513353,3.40472669,137.65,137.6,3.73472669]
[1763321513530,3.40472669,137.65,137.6,3.08472669]
[1763321513720,3.40472669,137.65,137.61,0.65]
[1763321514232,3.08472669,137.64,137.61,0.65]
[1763321514632,0.32,137.65,137.61,0.65]
[1763321514633,3.40472669,137.65,137.61,0.65]
[1763321514826,3.08472669,137.64,137.61,0.65]
[1763321515951,3.40472669,137.65,137.61,0.65]
[1763321516125,3.08472669,137.65,137.61,0.65]
[1763321520370,3.40472669,137.65,137.61,0.65]
[1763321520530,3.08472669,137.65,137.61,3.73472669]
[1763321520931,3.40472669,137.65,137.6,3.08472669]
[1763321521251,3.08472669,137.64,137.62,0.69]
[1763321521549,3.08472669,137.65,137.62,0.69]
[1763321522127,53.08472669,137.68,137.63,3.08472669]
[1763321522538,53.40472669,137.68,137.64,0.69]
[1763321522853,22.6512,137.67,137.64,0.69]
[1763321524252,22.9712,137.67,137.62,3.08472669]
[1763321524447,22.6512,137.67,137.64,0.69]
[1763321525654,22.6512,137.67,137.58,22.6512]
[1763321525655,3.08472669,137.65,137.6,3.77472669]
[1763321525855,3.40472669,137.66,137.6,3.77472669]
[1763321526056,3.40472669,137.66,137.61,3.77472669]
[1763321526863,3.40472669,137.66,137.62,0.69]
[1763321528947,22.6512,137.65,137.62,0.69]
[1763321532746,22.6512,137.65,137.62,0.19]
[1763321533075,23.3212,137.65,137.62,0.19]
[1763321533460,23.3212,137.65,137.59,3.08472669]
[1763321534278,23.3212,137.65,137.59,2.58472669]
[1763321534570,22.6512,137.65,137.59,3.08472669]
[1763321534863,22.6512,137.65,137.6,3.77472669]
[1763321535044,22.6512,137.65,137.62,3.08472669]
[1763321535247,0.67,137.68,137.63,3.08472669]
[1763321535443,3.08472669,137.71,137.65,3.08472669]
[1763321535751,22.6512,137.69,137.65,3.08472669]
[1763321535953,22.6512,137.69,137.66,0.69]
[1763321540558,22.6512,137.69,137.66,3.77472669]
[1763321540760,4.91243292,137.73,137.68,4.81243292]
[1763321541075,0.1,137.73,137.7,4.81243292]
[1763321541478,0.1,137.73,137.71,0.72]
[1763321542975,0.1,137.73,137.72,4.81243292]
[1763321543151,4.91243292,137.77,137.71,0.72]
[1763321543152,0.1,137.77,137.71,0.72]
[1763321543352,0.1,137.77,137.75,4.81243292]
[1763321543785,0.1,137.77,137.76,0.72]
[1763321544284,0.1,137.77,137.76,5.53243292]
[1763321550962,0.76,137.77,137.74,4.81243292]
[1763321551184,0.1,137.77,137.74,0.7]
[1763321551390,5.57243292,137.77,137.72,5.51243292]
[1763321551884,5.57243292,137.77,137.73,0.7]
[1763321552276,5.47243292,137.76,137.69,9.78882769]
[1763321552587,5.47243292,137.76,137.72,0.7]
[1763321552765,5.57243292,137.77,137.72,5.51243292]
[1763321552962,5.57243292,137.77,137.73,4.81243292]
[1763321553163,5.57243292,137.77,137.73,5.51243292]
[1763321553364,0.76,137.77,137.73,4.81243292]
[1763321553572,0.76,137.77,137.73,5.51243292]
[1763321553962,5.57243292,137.77,137.73,5.51243292]
[1763321554365,5.57243292,137.77,137.73,0.7]
[1763321555489,0.1,137.77,137.76,4.81243292]
[1763321555662,0.1,137.78,137.76,5.51243292]
[1763321555980,0.1,137.78,137.77,5.51243292]
[1763321556181,0.1,137.83,137.77,5.51243292]
[1763321556365,0.1,137.83,137.82,4.81243292]
[1763321556883,0.1,137.83,137.82,5.51243292]
[1763321557761,0.1,137.85,137.82,0.7]
[1763321557960,0.1,137.85,137.76,29.46363291]
[1763321557961,0.1,137.85,137.84,4.81243292]
[1763321558361,0.1,137.85,137.84,5.51243292]
[1763321559666,0.1,137.85,137.84,15.30126061]
[1763321560195,0.1,137.85,137.84,0.7]
[1763321560366,0.1,137.85,137.84,5.51243292]
[1763321562603,0.1,137.85,137.84,0.7]
[1763321562973,0.1,137.85,137.84,5.51243292]
[1763321564790,100.0,137.96,137.84,5.51243292]
[1763321564791,0.66,137.96,137.88,9.78882769]
[1763321565000,0.66,137.96,137.92,4.81243292]
[1763321565175,0.66,137.98,137.94,4.81243292]
[1763321565501,4.81243292,137.98,137.93,4.81243292]
[1763321565686,4.81243292,137.95,137.9,5.51243292]
[1763321566192,0.66,137.95,137.92,4.81243292]
[1763321566989,0.66,137.95,137.91,4.81243292]
[1763321567389,0.66,137.95,137.91,5.51243292]
[1763321567890,27.46363292,137.94,137.89,4.81243292]
[1763321568286,0.66,137.93,137.89,4.81243292]
[1763321568471,22.6512,137.94,137.91,4.81243292]
[1763321568676,23.3112,137.94,137.91,4.81243292]
[1763321568890,0.66,137.94,137.91,4.81243292]
[1763321569873,0.66,137.94,137.9,5.51243292]
[1763321570172,0.66,137.94,137.91,4.81243292]
[1763321570368,23.3112,137.96,137.92,4.81243292]
[1763321570573,0.66,137.95,137.92,4.81243292]
[1763321570883,23.3112,137.96,137.92,5.51243292]
[1763321571083,23.3112,137.96,137.93,0.7]
[1763321571282,23.3112,137.96,137.92,5.51243292]
[1763321572301,0.66,137.96,137.92,5.51243292]
[1763321572683,22.6512,137.97,137.93,5.51243292]
[1763321572878,4.91243292,137.99,137.94,4.81243292]
[1763321573085,0.1,137.99,137.95,4.81243292]
[1763321573405,0.1,137.99,137.97,4.81243292]
[1763321574015,0.1,137.99,137.98,5.51243292]
[1763321575581,0.1,137.99,137.98,4.81243292]
[1763321576298,0.1,137.99,137.97,4.81243292]
[1763321576682,0.1,137.99,137.98,0.7]
[1763321577215,0.1,137.99,137.98,13.41284973]
[1763321578207,0.1,137.99,137.98,23.20167742]
[1763321578992,0.66,138.08,137.98,23.20167742]
[1763321579287,0.66,138.07,138.04,12.71284973]
[1763321579494,0.66,138.07,138.03,12.71284973]
[1763321580003,0.66,138.07,138.04,12.71284973]
[1763321580306,0.71,138.09,138.06,12.71284973]
[1763321580614,0.71,138.15,138.08,12.71284973]
[1763321580910,50.0,138.16,138.12,12.71284973]
[1763321580911,0.71,138.14,138.12,12.71284973]
[1763321581206,0.1,138.13,138.11,12.71284973]
[1763321581389,0.1,138.13,138.12,12.71284973]
[1763321583096,0.1,138.13,138.1,0.67]
[1763321583395,0.1,138.13,138.11,12.71284973]
[1763321584330,0.1,138.13,138.09,12.71284973]
[1763321584331,0.81,138.13,138.09,12.71284973]
[1763321584623,36.17404973,138.13,138.08,12.71284973]
[1763321584828,13.42284973,138.12,138.07,12.71284973]
[1763321584986,12.71284973,138.1,138.05,12.71284973]
[1763321585184,23.3612,138.11,138.07,12.71284973]
[1763321585591,0.71,138.1,138.07,12.71284973]
[1763321587429,35.46404973,138.13,138.07,12.71284973]
[1763321587725,0.71,138.12,138.08,12.71284973]
[1763321587893,0.1,138.13,138.1,12.71284973]
[1763321588088,0.1,138.13,138.11,12.71284973]
[1763321588291,0.1,138.13,138.12,12.71284973]
[1763321588721,0.1,138.13,138.12,13.38284973]
[1763321589723,0.1,138.13,138.11,12.71284973]
[1763321590388,0.1,138.13,138.1,12.71284973]
[1763321590809,0.81,138.13,138.1,12.71284973]
[1763321591010,0.81,138.13,138.09,12.71284973]
[1763321591596,0.81,138.13,138.03,0.67]
[1763321591816,0.81,138.13,138.05,12.71284973]
[1763321592033,0.81,138.13,138.07,12.71284973]
[1763321592328,12.71284973,138.12,138.07,12.71284973]
[1763321592733,0.71,138.11,138.07,12.71284973]
[1763321593028,13.42284973,138.11,138.06,12.71284973]
[1763321593206,0.71,138.11,138.07,12.71284973]
[1763321593405,22.7512,138.13,138.09,12.71284973]
[1763321593406,0.1,138.13,138.09,12.71284973]
[1763321593619,0.1,138.13,138.12,12.71284973]
[1763321593829,0.1,138.13,138.12,13.38284973]
[1763321594037,0.1,138.13,138.12,23.17167742]
[1763321594223,0.1,138.13,138.12,0.67]
[1763321594427,0.1,138.13,138.12,13.38284973]
[1763321594725,0.1,138.13,138.12,23.17167742]
[1763321597699,0.1,138.13,138.12,10.45882769]
[1763321597895,0.1,138.13,138.12,13.38284973]
[1763321598201,0.1,138.13,138.12,23.17167742]
[1763321600547,0.1,138.13,138.12,9.78882769]
[1763321600717,0.1,138.13,138.12,23.18167742]
[1763321600918,0.1,138.13,138.12,17.75241146]
[1763321601135,0.1,138.13,138.12,10.46882769]
[1763321601648,0.1,138.13,138.12,17.75241146]
[1763321601943,0.1,138.13,138.12,7.96358377]
[1763321602251,0.1,138.13,138.12,7.28358377]
[1763321603427,0.1,138.13,138.12,7.96358377]
[1763321604044,0.1,138.13,138.12,17.75241146]
[1763321604250,0.1,138.13,138.12,25.03599523]
[1763321604932,0.1,138.13,138.12,47.68719523]
[1763321605244,0.66,138.21,138.12,47.68719523]
[1763321605459,0.66,138.21,138.18,7.28358377]
[1763321605947,0.66,138.21,138.17,7.28358377]
[1763321606874,0.66,138.21,138.18,7.28358377]
[1763321607379,0.66,138.23,138.2,7.28358377]
[1763321607668,29.93478377,138.25,138.2,7.28358377]
[1763321607669,0.66,138.22,138.2,7.28358377]
[1763321608370,0.66,138.25,138.21,7.28358377]
[1763321608570,0.1,138.27,138.22,7.28358377]
[1763321608775,0.66,138.25,138.22,7.28358377]
[1763321608939,0.66,138.25,138.2,7.28358377]
[1763321609140,7.94358377,138.25,138.2,7.28358377]
[1763321609369,0.66,138.25,138.21,7.28358377]
[1763321609673,0.66,138.24,138.21,7.28358377]
[1763321610275,0.66,138.24,138.18,0.68]
[1763321610506,0.66,138.24,138.21,7.28358377]
[1763321611154,7.94358377,138.24,138.16,31.54451136]
[1763321611361,7.28358377,138.22,138.17,7.28358377]
[1763321611556,7.28358377,138.21,138.16,7.28358377]
[1763321611969,0.7,138.2,138.17,7.28358377]
[1763321612775,0.7,138.2,138.16,7.28358377]
[1763321613440,0.7,138.2,138.17,7.28358377]
[1763321613640,0.7,138.23,138.19,7.28358377]
[1763321613882,0.7,138.23,138.2,7.28358377]
[1763321614045,0.7,138.23,138.17,9.78882769]
[1763321614257,0.7,138.23,138.19,7.28358377]
[1763321615993,0.7,138.23,138.2,7.28358377]
[1763321616676,0.7,138.25,138.21,7.28358377]
[1763321617102,0.7,138.25,138.22,7.28358377]
[1763321617263,0.7,138.25,138.18,0.66]
[1763321617467,0.7,138.25,138.21,7.28358377]
[1763321618299,0.7,138.25,138.21,0.66]
[1763321618478,0.7,138.25,138.22,7.28358377]
[1763321619078,0.7,138.25,138.21,0.66]
[1763321619257,7.28358377,138.26,138.21,0.66]
[1763321619463,0.7,138.26,138.21,0.66]
[1763321619687,0.7,138.25,138.22,7.28358377]
[1763321620207,0.7,138.25,138.2,0.66]
[1763321620363,0.7,138.25,138.22,7.28358377]
[1763321620561,0.1,138.27,138.23,7.28358377]
[1763321620863,0.1,138.27,138.24,7.28358377]
[1763321621071,0.8,138.27,138.24,7.28358377]
[1763321621469,0.1,138.27,138.26,7.28358377]
[1763321621880,0.1,138.27,138.25,7.28358377]
[1763321622911,0.1,138.27,138.21,9.78882769]
[1763321622912,0.1,138.27,138.26,7.28358377]
[1763321623276,0.1,138.27,138.25,7.28358377]
[1763321623677,0.1,138.27,138.26,7.28358377]
[1763321624013,0.1,138.27,137.95,113.86964106]
[1763321624014,8.08358377,138.27,137.95,113.86964106]
[1763321624220,50.0,138.18,138.04,1.99999999]
[1763321624509,7.28358377,138.17,138.11,7.28358377]
[1763321624708,0.7,138.18,138.14,7.28358377]
[1763321625076,0.7,138.18,138.15,7.28358377]
[1763321626604,0.7,138.18,138.14,7.28358377]
[1763321626904,0.7,138.18,138.15,7.28358377]
[1763321627274,0.7,138.18,138.13,0.66]
[1763321627275,7.98358377,138.18,138.13,7.28358377]
[1763321627497,7.28358377,138.16,138.1,7.28358377]
[1763321627681,72.6512,138.2,138.1,7.28358377]
[1763321627682,7.28358377,138.15,138.1,7.28358377]
[1763321627883,0.7,138.17,138.08,7.28358377]
[1763321627884,7.28358377,138.13,138.08,7.28358377]
[1763321628084,7.98358377,138.16,138.07,7.28358377]
[1763321628279,7.28358377,138.12,138.08,7.28358377]
[1763321628498,7.28358377,138.12,138.07,7.28358377]
[1763321628699,7.98358377,138.11,138.06,7.28358377]
[1763321629113,0.7,138.1,138.06,7.28358377]
[1763321629408,7.98358377,138.1,138.05,7.28358377]
[1763321629578,7.28358377,138.08,138.03,7.28358377]
[1763321629901,7.28358377,138.08,138.01,0.66]
[1763321630101,7.28358377,138.08,138.03,7.28358377]
[1763321630312,7.98358377,138.07,138.02,7.28358377]
[1763321630680,7.98358377,138.06,138.01,7.28358377]
[1763321631198,0.7,138.05,138.01,7.28358377]
[1763321632208,50.0,138.1,137.99,0.86]
[1763321632209,0.7,138.1,138.04,7.28358377]
[1763321632416,72.6512,138.12,138.07,7.28358377]
[1763321632417,7.28358377,138.12,138.07,7.28358377]
[1763321632583,7.98358377,138.12,138.07,7.28358377]
[1763321632787,0.7,138.11,138.07,7.28358377]
[1763321633090,7.98358377,138.11,138.01,9.78882769]
[1763321633295,7.28358377,138.1,138.05,7.28358377]
[1763321633496,0.7,138.11,138.07,7.28358377]
[1763321634112,7.98358377,138.11,138.05,0.66]
[1763321634283,7.98358377,138.11,138.02,9.78882769]
[1763321634284,7.98358377,138.11,138.04,9.78882769]
[1763321634493,0.7,138.1,138.06,7.28358377]
[1763321635010,0.7,138.1,138.07,7.28358377]
[1763321635485,0.7,138.1,138.06,7.28358377]
[1763321635881,7.98358377,138.1,138.05,7.28358377]
[1763321636283,0.7,138.09,138.05,7.28358377]
[1763321636690,7.98358377,138.09,138.03,0.66]
[1763321636895,7.28358377,138.08,138.01,10.44882769]
[1763321637099,7.98358377,138.08,138.03,7.28358377]
[1763321637281,0.7,138.07,138.03,7.28358377]
[1763321638295,7.98358377,138.07,138.02,7.28358377]
[1763321638492,0.7,138.07,138.02,7.28358377]
[1763321638709,0.7,138.06,138.02,7.94358377]
[1763321640078,0.7,138.06,138.03,7.28358377]
[1763321640534,72.6512,138.11,138.01,0.67]
[1763321640684,0.66,138.06,138.02,7.28358377]
[1763321640881,0.66,138.14,138.05,7.28358377]
[1763321641089,7.28358377,138.14,138.09,7.28358377]
[1763321641414,0.66,138.13,138.09,7.28358377]
[1763321641816,0.66,138.13,138.06,0.67]
[1763321641990,7.94358377,138.13,138.08,7.28358377]
[1763321642480,0.66,138.12,138.08,7.28358377]
[1763321643387,0.66,138.12,138.07,7.28358377]
[1763321643388,7.94358377,138.12,138.07,7.28358377]
[1763321643632,7.28358377,138.1,138.05,7.28358377]
[1763321643918,7.28358377,138.1,138.04,0.67]
[1763321643919,12.36150897,138.11,138.02,0.67]
[1763321644091,7.28358377,138.08,138.03,7.28358377]
[1763321644513,0.66,138.07,138.03,7.28358377]
[1763321644913,7.94358377,138.07,138.02,7.28358377]
[1763321645115,7.28358377,138.04,137.99,0.2]
[1763321645315,7.28358377,138.02,137.99,0.2]
[1763321645833,7.28358377,138.0,137.99,0.2]
[1763321646230,19.64509274,138.0,137.99,0.2]
[1763321646429,12.36150897,138.0,137.99,0.2]
[1763321646640,19.64509274,138.0,137.99,0.2]
[1763321646818,7.94358377,138.0,137.99,0.2]
[1763321647014,7.28358377,138.01,137.99,0.2]
[1763321647220,7.94358377,138.01,137.99,0.2]
[1763321647844,7.94358377,138.0,137.99,0.2]
[1763321648346,0.66,138.0,137.99,0.2]
[1763321648512,7.94358377,138.0,137.99,0.2]
[1763321649841,57.94358377,138.0,137.99,0.2]
[1763321650338,65.22716754,138.0,137.99,0.2]
[1763321650522,30.59478377,138.0,137.99,0.2]
[1763321651041,80.59478377,138.0,137.99,0.2]
[1763321651724,147.66719523,138.0,137.99,0.2]
[1763321651928,80.59478377,138.0,137.99,0.2]
[1763321652440,125.01599523,138.0,137.99,0.2]
[1763321652633,72.6512,137.97,137.89,7.28358377]
[1763321652943,7.28358377,137.94,137.89,7.28358377]
[1763321653132,7.28358377,137.94,137.85,9.78882769]
[1763321653442,7.28358377,137.96,137.92,7.28358377]
[1763321654124,7.28358377,137.96,137.86,22.6512]
[1763321654326,7.28358377,137.96,137.91,7.28358377]
[1763321654536,7.28358377,137.95,137.9,7.28358377]
[1763321655552,103.2,137.99,137.93,7.28358377]
[1763321655553,153.2,137.99,137.93,7.28358377]
[1763321655734,7.28358377,137.98,137.93,7.28358377]
[1763321655937,175.8512,137.99,137.92,7.28358377]
[1763321655938,7.28358377,137.97,137.92,7.28358377]
[1763321656147,7.28358377,137.97,137.87,32.44002769]
[1763321656445,7.28358377,137.96,137.91,7.28358377]
[1763321656622,225.8512,137.99,137.87,32.44002769]
[1763321656623,7.28358377,137.94,137.87,22.6512]
[1763321656818,7.28358377,137.94,137.84,9.78882769]
[1763321657015,7.28358377,137.93,137.88,7.28358377]
[1763321657525,50.0,137.95,137.87,7.28358377]
[1763321657526,7.28358377,137.92,137.87,7.28358377]
[1763321657730,7.28358377,137.93,137.88,7.28358377]
[1763321658337,7.28358377,137.91,137.83,32.44002769]
[1763321658526,7.28358377,137.9,137.85,7.28358377]
[1763321658723,7.28358377,137.91,137.86,7.28358377]
[1763321658923,7.28358377,137.92,137.8,32.44002769]
[1763321659153,7.28358377,137.92,137.87,7.28358377]
[1763321660047,29.93478377,137.93,137.83,9.78882769]
[1763321660437,29.93478377,137.93,137.88,7.28358377]
[1763321660751,29.93478377,137.93,137.79,9.25731481]
[1763321660752,7.28358377,137.91,137.79,22.6512]
[1763321660955,7.28358377,137.91,137.86,12.73447131]
[1763321660956,12.73447131,137.91,137.86,12.73447131]
[1763321661322,12.73447131,137.9,137.85,12.73447131]
[1763321661752,12.73447131,137.89,137.77,22.6512]
[1763321661927,12.73447131,137.88,137.83,12.73447131]
[1763321662258,22.6512,137.9,137.84,12.73447131]
[1763321662259,12.73447131,137.89,137.84,12.73447131]
[1763321662550,12.73447131,137.89,137.78,32.44002769]
[1763321662858,12.73447131,137.88,137.83,12.73447131]
[1763321663090,50.0,137.91,137.84,12.73447131]
[1763321663264,22.6512,137.92,137.87,12.73447131]
[1763321663438,12.73447131,137.93,137.88,12.73447131]
[1763321663751,12.73447131,137.92,137.87,12.73447131]
[1763321664137,72.6512,137.95,137.88,12.73447131]
[1763321664463,12.73447131,137.93,137.88,12.73447131]
[1763321664632,72.6512,137.95,137.89,12.73447131]
[1763321664842,12.73447131,137.94,137.89,12.73447131]
[1763321665741,12.73447131,137.93,137.89,12.73447131]
[1763321665954,12.73447131,137.91,137.86,12.73447131]
[1763321666255,12.73447131,137.92,137.87,12.73447131]
[1763321667642,12.73447131,137.91,137.86,12.73447131]
[1763321668057,50.0,137.94,137.83,12.73447131]
[1763321668058,12.73447131,137.88,137.83,12.73447131]
[1763321668532,93.5602899,137.92,137.81,12.73447131]
[1763321668533,12.73447131,137.86,137.81,12.73447131]
[1763321668728,85.38567131,137.87,137.82,12.73447131]
[1763321668964,72.6512,137.87,137.82,12.73447131]
[1763321669261,35.38567131,137.9,137.85,12.73447131]
[1763321669447,22.6512,137.9,137.85,12.73447131]
[1763321669646,35.38567131,137.9,137.85,12.73447131]
[1763321670548,22.6512,137.9,137.86,12.73447131]
[1763321670761,22.6512,137.9,137.85,12.73447131]
[1763321670932,35.38567131,137.9,137.85,12.73447131]
[1763321671133,35.38567131,137.9,137.81,9.78882769]
[1763321671333,35.38567131,137.9,137.81,12.73447131]
[1763321671334,12.73447131,137.86,137.81,12.73447131]
[1763321671555,12.73447131,137.86,137.71,0.2]
[1763321671556,12.73447131,137.83,137.71,0.2]
[1763321672036,12.73447131,137.81,137.76,12.73447131]
[1763321672460,12.73447131,137.81,137.73,22.6512]
[1763321672764,13.39447131,137.81,137.76,12.73447131]
[1763321672965,12.73447131,137.82,137.77,12.73447131]
[1763321673138,35.38567131,137.84,137.79,12.73447131]
[1763321673549,35.38567131,137.84,137.73,22.6512]
[1763321673753,12.73447131,137.83,137.73,22.6512]
[1763321673955,12.73447131,137.81,137.72,32.44002769]
[1763321674145,50.66,137.82,137.75,12.73447131]
[1763321674351,12.73447131,137.8,137.75,12.73447131]
[1763321674752,13.39447131,137.8,137.75,12.73447131]
[1763321675074,12.73447131,137.79,137.74,12.73447131]
[1763321675236,13.39447131,137.8,137.75,12.73447131]
[1763321675581,0.66,137.8,137.76,12.73447131]
[1763321676272,0.66,137.8,137.71,9.98882769]
[1763321676431,13.39447131,137.8,137.76,12.73447131]
[1763321676629,0.66,137.8,137.76,12.73447131]
[1763321677034,13.39447131,137.8,137.71,9.98882769]
[1763321677443,12.73447131,137.79,137.74,12.73447131]
[1763321677659,12.73447131,137.78,137.73,12.73447131]
[1763321677873,12.73447131,137.76,137.71,12.93447131]
[1763321678550,13.39447131,137.76,137.71,12.93447131]
[1763321678948,13.39447131,137.76,137.71,0.2]
[1763321678949,13.39447131,137.75,137.71,0.2]
[1763321679351,0.66,137.74,137.71,0.2]
[1763321679555,12.73447131,137.75,137.71,0.2]
[1763321679763,63.39447131,137.76,137.71,12.93447131]
[1763321680590,12.73447131,137.75,137.71,0.2]
[1763321681544,35.38567131,137.78,137.73,12.73447131]
[1763321681746,12.73447131,137.78,137.73,12.73447131]
[1763321681965,35.38567131,137.78,137.73,12.73447131]
[1763321682171,22.6512,137.78,137.74,12.73447131]
[1763321682500,22.6512,137.78,137.75,12.73447131]
[1763321683001,0.66,137.8,137.75,12.73447131]
[1763321683172,0.66,137.8,137.76,12.73447131]
[1763321684371,0.66,137.8,137.72,9.78882769]
[1763321684572,13.39447131,137.8,137.75,12.73447131]
[1763321685104,0.66,137.79,137.75,12.73447131]
[1763321685969,0.66,137.79,137.71,0.92]
[1763321686188,0.66,137.79,137.75,12.73447131]
[1763321686875,11.34473119,137.82,137.78,12.73447131]
[1763321687074,0.66,137.83,137.79,12.73447131]
[1763321687289,0.66,137.86,137.81,12.73447131]
[1763321687479,12.73447131,137.85,137.8,12.73447131]
[1763321687682,35.38567131,137.85,137.8,12.73447131]
[1763321687873,0.66,137.84,137.8,12.73447131]
[1763321688384,0.66,137.84,137.81,12.73447131]
[1763321688569,13.39447131,137.86,137.81,12.73447131]
[1763321688773,23.3112,137.85,137.81,12.73447131]
[1763321689374,0.66,137.84,137.76,10.50882769]
[1763321689580,36.04567131,137.84,137.79,12.73447131]
[1763321690184,23.3112,137.84,137.8,12.73447131]
[1763321690700,0.66,137.83,137.76,9.78882769]
[1763321691001,13.39447131,137.83,137.76,9.78882769]
[1763321691199,12.73447131,137.82,137.75,22.6512]
[1763321691401,13.39447131,137.82,137.75,22.6512]
[1763321691582,13.39447131,137.82,137.74,9.78882769]
[1763321692084,22.6512,137.8,137.71,0.92]
[1763321692399,12.73447131,137.79,137.74,12.73447131]
[1763321692694,0.66,137.78,137.74,12.73447131]
[1763321693194,0.66,137.78,137.72,0.72]
[1763321693403,0.66,137.78,137.74,12.73447131]
[1763321696006,0.66,137.78,137.75,12.73447131]